fUST/lending_fUST_20260117
["ID","MTS","AMOUNT","RATE_DAILY","PERIOD"]
[402349186,1768662639027,-152.14735324,0.0001317,2]
[402349188,1768662639037,-67.0646049,0.0001317,2]
[402349198,1768662639124,-432.9353951,0.0001317,2]
[402349200,1768662639135,-500.0,0.0001317,2]
[402349202,1768662639146,-500.0,0.0001317,2]
[402349204,1768662639156,-500.0,0.0001317,2]
[402349206,1768662639167,-565.65579404,0.0001317,2]
[402349208,1768662639178,-500.0,0.0001317,2]
[402349210,1768662639188,-500.0,0.0001317,2]
[402349212,1768662639199,-500.0,0.0001317,2]
[402349214,1768662639208,-500.0,0.0001317,2]
[402349216,1768662639219,-500.0,0.0001317,2]
[402349218,1768662639229,-500.0,0.0001317,2]
[402349221,1768662639239,-500.0,0.0001317,2]
[402349223,1768662639248,-500.0,0.0001317,2]
[402349225,1768662639260,-500.0,0.0001317,2]
[402349227,1768662639269,-358.65938438,0.0001317,2]
[402349229,1768662639281,-500.0,0.0001317,2]
[402349231,1768662639291,-500.0,0.0001317,2]
[402349233,1768662639303,-500.0,0.0001317,2]
[402349235,1768662639312,-500.0,0.0001317,2]
[402349237,1768662639322,-500.0,0.0001317,2]
[402349239,1768662639331,-500.0,0.0001317,2]
[402349241,1768662639341,-500.0,0.0001317,2]
[402349243,1768662639351,-500.0,0.0001317,2]
[402349245,1768662639360,-500.0,0.0001317,2]
[402349247,1768662639372,-500.0,0.0001317,2]
[402349249,1768662639381,-500.0,0.0001317,2]
[402349251,1768662639390,-500.0,0.0001317,2]
[402349253,1768662639400,-500.0,0.0001317,2]
[402349255,1768662639409,-500.0,0.0001317,2]
[402349257,1768662639419,-500.0,0.0001317,2]
[402349259,1768662639428,-500.0,0.0001317,2]
[402349261,1768662639439,-499.7383152,0.0001317,2]
[402349263,1768662639448,-500.0,0.0001317,2]
[402349265,1768662639458,-500.0,0.0001317,2]
[402349267,1768662639467,-500.0,0.0001317,2]
[402349269,1768662639476,-500.0,0.0001317,2]
[402349271,1768662639486,-500.0,0.0001317,2]
[402349273,1768662639495,-500.0,0.0001317,2]
[402349275,1768662639504,-500.0,0.0001317,2]
[402349277,1768662639514,-500.0,0.0001317,2]
[402349279,1768662639523,-500.0,0.0001317,2]
[402349281,1768662639532,-288.36156205,0.0001317,2]
[402349284,1768662639542,-500.0,0.0001317,2]
[402349286,1768662639552,-500.0,0.0001317,2]
[402349288,1768662639561,-500.0,0.0001317,2]
[402349290,1768662639571,-500.0,0.0001317,2]
[402349292,1768662639580,-500.0,0.00013172,2]
[402349293,1768662639590,-500.0,0.00013172,2]
[402349294,1768662639599,-500.0,0.00013172,2]
[402349295,1768662639608,-462.10800014,0.00013172,2]
[402349296,1768662639617,-500.0,0.00013172,2]
[402349297,1768662639626,-500.0,0.00013172,2]
[402349298,1768662639635,-597.09204907,0.00013172,2]
[402349299,1768662639644,-151.0,0.000132,2]
[402349300,1768662639653,-151.0,0.000132,2]
[402349301,1768662639662,-151.0,0.000132,2]
[402349302,1768662639671,-151.0,0.000132,2]
[402349303,1768662639681,-151.0,0.000132,2]
[402349304,1768662639690,-151.0,0.000132,2]
[402349305,1768662639699,-151.0,0.000132,2]
[402349306,1768662639708,-151.0,0.000132,2]
[402349307,1768662639717,-500.0,0.00013273,2]
[402349308,1768662639726,-500.0,0.00013273,2]
[402349309,1768662639736,-500.0,0.00013273,2]
[402349310,1768662639745,-524.62460419,0.00013273,2]
[402349311,1768662639754,-500.0,0.00013273,2]
[402349312,1768662639765,-500.0,0.00013273,2]
[402349313,1768662639775,-500.0,0.00013273,2]
[402349314,1768662639784,-755.7377368,0.00013341,2]
[402349315,1768662639793,-500.0,0.00013445,2]
[402349316,1768662639803,-602.5013427,0.00013478,2]
[402349317,1768662639812,-602.5013427,0.00013478,2]
[402349318,1768662639821,-1000.0,0.00013698,2]
[402349319,1768662639831,-1000.0,0.00013698,2]
[402349320,1768662639840,-1000.0,0.00013698,2]
[402349321,1768662639849,-1000.0,0.00013698,2]
[402349322,1768662639858,-1000.0,0.00013698,2]
[402349323,1768662639867,-1000.0,0.00013698,2]
[402349325,1768662639877,-1000.0,0.00013698,2]
[402349327,1768662639887,-1019.17213815,0.00013698,2]
[402349328,1768662639896,-500.0,0.00013698,2]
[402349331,1768662639906,-500.0,0.00013698,2]
[402349333,1768662639915,-500.0,0.00013698,2]
[402349335,1768662639925,-500.0,0.00013698,2]
[402349337,1768662639935,-500.0,0.00013698,2]
[402349338,1768662639944,-500.0,0.00013698,2]
[402349341,1768662639954,-500.0,0.00013698,2]
[402349342,1768662639964,-500.0,0.00013698,2]
[402349345,1768662639974,-500.0,0.00013698,2]
[402349347,1768662639987,-500.0,0.00013698,2]
[402349349,1768662639997,-162.00907998,0.00013698,2]
[402349351,1768662640007,-1974.72,0.00013698,2]
[402349353,1768662640017,-1974.72,0.00013698,2]
[402349355,1768662640027,-1974.72,0.00013698,2]
[402349357,1768662640037,-1974.72,0.00013698,2]
[402349359,1768662640047,-1974.72,0.00013698,2]
[402349361,1768662640057,-1974.72,0.00013698,2]
[402349363,1768662640066,-1974.72,0.00013698,2]
[402349365,1768662640076,-1974.72,0.00013698,2]
[402349367,1768662640086,-1974.72,0.00013698,2]
[402349369,1768662640095,-1974.72,0.00013698,2]
[402349371,1768662640105,-1974.72,0.00013698,2]
[402349373,1768662640115,-1974.72,0.00013698,2]
[402349375,1768662640124,-1974.72,0.00013698,2]
[402349377,1768662640134,-1974.72,0.00013698,2]
[402349379,1768662640144,-1974.72,0.00013698,2]
[402349381,1768662640154,-1974.72,0.00013698,2]
[402349383,1768662640163,-1974.72,0.00013698,2]
[402349385,1768662640173,-1974.72,0.00013698,2]
[402349387,1768662640183,-1974.72,0.00013698,2]
[402349389,1768662640193,-1974.72,0.00013698,2]
[402349392,1768662640203,-1974.72,0.00013698,2]
[402349394,1768662640213,-1974.72,0.00013698,2]
[402349396,1768662640222,-1974.72,0.00013698,2]
[402349398,1768662640232,-1974.90222486,0.00013698,2]
[402349400,1768662640241,-1000.0,0.00013699,2]
[402349402,1768662640251,-476.417731,0.00013699,2]
[402349404,1768662640261,-622.93942038,0.00013699,2]
[402349406,1768662640270,-500.0,0.00013699,2]
[402349408,1768662640280,-155.0,0.00013699,2]
[402349410,1768662640292,-500.0,0.00013699,2]
[402349412,1768662640302,-500.0,0.00013699,2]
[402349414,1768662640311,-158.0,0.00013699,2]
[402349416,1768662640320,-186.53198003,0.00013699,2]
[402349418,1768662640331,-500.0,0.00013699,2]
[402349420,1768662640340,-505.25947973,0.00013821,2]
[402349422,1768662640349,-1000.0,0.00013821,2]
[402349424,1768662640359,-467.77871319,0.00013821,2]
[402349426,1768662640370,-619.0,0.00013823,2]
[402349428,1768662640379,-1000.0,0.00014247,2]
[402349430,1768662640388,-587.52830239,0.00014247,2]
[402349432,1768662640397,-1000.0,0.00014247,2]
[402349434,1768662640407,-1000.0,0.00014247,2]
[402349436,1768662640417,-1500.0,0.00014368,2]
[402349438,1768662640426,-5000.0,0.0001451,2]
[402349440,1768662640437,-660.83132082,0.00014795,2]
[402349442,1768662640446,-1493.74297815,0.00014795,2]
[402349444,1768662640456,-2000.0,0.00014916,2]
[402349446,1768662640465,-417.70618092,0.00015168,2]
[402349448,1768662640475,-172.17955796,0.000154,2]
[402349450,1768662640485,-2500.0,0.00015464,2]
[402349452,1768662640494,-715.0,0.00015644,2]
[402349454,1768662640504,-199.164,0.00015644,2]
[402349457,1768662640514,-417.0,0.00015644,2]
[402349459,1768662640523,-417.0,0.00015644,2]
[402349461,1768662640532,-500.0,0.00015749,30]
[402349462,1768662640548,-500.0,0.00015749,30]
[402349464,1768662640561,-500.0,0.00015749,30]
[402349467,1768662640571,-500.0,0.00015749,30]
[402349468,1768662640581,-500.0,0.00015749,30]
[402349471,1768662640591,-501.7604766,0.00015749,30]
[402349473,1768662640600,-500.0,0.00015749,30]
[402349475,1768662640610,-500.0,0.00015749,30]
[402349477,1768662640620,-500.0,0.00015749,30]
[402349479,1768662640630,-500.0,0.00015749,30]
[402349481,1768662640640,-500.0,0.00015749,30]
[402349482,1768662640651,-429.0582887,0.00015749,30]
[402349485,1768662640661,-156.47426594,0.00015749,30]
[402349487,1768662640670,-232.572,0.00015939,2]
[402349489,1768662640680,-244.191,0.00015939,2]
[402349491,1768662640689,-250.0,0.00015939,2]
[402349493,1768662640698,-100000.0,0.0001599,2]
[402349495,1768662640708,-3000.0,0.00016,2]
[402349497,1768662640717,-3000.0,0.0001601,2]
[402349499,1768662640726,-3000.0,0.00016012,2]
[402349500,1768662640735,-3000.0,0.0001602,2]
[402349503,1768662640745,-3000.0,0.0001603,2]
[402349505,1768662640754,-3000.0,0.0001604,2]
[402349507,1768662640763,-3000.0,0.0001605,2]
[402349509,1768662640773,-3000.0,0.0001606,2]
[402349511,1768662640782,-500.0,0.00016062,2]
[402349513,1768662640791,-3000.0,0.0001607,2]
[402349515,1768662640801,-3000.0,0.0001608,2]
[402349517,1768662640810,-3000.0,0.0001609,2]
[402349519,1768662640819,-3000.0,0.000161,2]
[402349521,1768662640829,-200.096,0.00016103,2]
[402349523,1768662640838,-261.666,0.00016103,2]
[402349525,1768662640848,-267.705,0.00016103,2]
[402349527,1768662640857,-2147.0,0.00016103,2]
[402349559,1768662641179,-1367.0,0.00016103,2]
[402349563,1768662641210,-629.0,0.00016103,2]
[402349565,1768662641220,-3000.0,0.0001611,2]
[402349567,1768662641230,-3000.0,0.0001612,2]
[402349569,1768662641239,-3000.0,0.0001613,2]
[402349571,1768662641248,-3000.0,0.0001614,2]
[402349573,1768662641258,-3000.0,0.0001615,2]
[402349575,1768662641267,-3000.0,0.0001616,2]
[402349576,1768662641276,-3000.0,0.0001617,2]
[402349579,1768662641286,-3000.0,0.0001618,2]
[402349581,1768662641297,-3000.0,0.0001619,2]
[402349583,1768662641307,-500.0,0.00016199,2]
[402349585,1768662641316,-3000.0,0.000162,2]
[402349587,1768662641325,-3000.0,0.0001621,2]
[402349589,1768662641337,-3000.0,0.0001622,2]
[402349591,1768662641346,-3000.0,0.0001623,2]
[402349592,1768662641355,-3000.0,0.0001624,2]
[402349595,1768662641365,-3000.0,0.0001625,2]
[402349596,1768662641376,-3000.0,0.0001626,2]
[402349599,1768662641386,-3000.0,0.0001627,2]
[402349601,1768662641395,-3000.0,0.0001628,2]
[402349602,1768662641406,-3000.0,0.0001629,2]
[402349605,1768662641417,-3000.0,0.000163,2]
[402349607,1768662641426,-3000.0,0.0001631,2]
[402349609,1768662641436,-3000.0,0.0001632,2]
[402349611,1768662641446,-3000.0,0.0001633,2]
[402349613,1768662641455,-500.0,0.00016336,2]
[402349615,1768662641464,-10564.46419365,0.00016338,2]
[402349616,1768662641474,-3000.0,0.0001634,2]
[402349618,1768662641483,-743.769251,0.00016346,7]
[402349620,1768662641492,-3000.0,0.0001635,2]
[402349623,1768662641502,-488.279472,0.0001635,7]
[402349625,1768662641513,-3000.0,0.0001636,2]
[402349627,1768662641522,-3000.0,0.0001637,2]
[402349629,1768662641531,-214.907687,0.0001637,7]
[402349631,1768662641540,-3000.0,0.0001638,2]
[402349632,1768662641550,-3000.0,0.0001639,2]
[402349635,1768662641559,-3000.0,0.000164,2]
[402349637,1768662641568,-3000.0,0.0001641,2]
[402349639,1768662641578,-3000.0,0.0001642,2]
[402349641,1768662641587,-3000.0,0.00016428,2]
[402349643,1768662641597,-3000.0,0.0001643,2]
[402349644,1768662641606,-500.0,0.00016438,3]
[402349646,1768662641615,-644.00223298,0.00016438,3]
[402349648,1768662641625,-500.0,0.00016438,3]
[402349650,1768662641634,-500.0,0.00016438,3]
[402349652,1768662641643,-435.32524061,0.00016438,3]
[402349654,1768662641652,-500.0,0.00016438,3]
[402349656,1768662641662,-500.0,0.00016438,2]
[402349658,1768662641672,-500.0,0.00016438,2]
[402349660,1768662641681,-305.46837696,0.00016438,2]
[402349662,1768662641691,-522.82,0.00016438,3]
[402349664,1768662641701,-500.0,0.00016438,3]
[402349666,1768662641710,-943.68399769,0.00016438,3]
[402349668,1768662641720,-674.48,0.00016438,3]
[402349670,1768662641730,-712.93,0.00016438,3]
[402349672,1768662641740,-500.0,0.00016438,3]
[402349674,1768662641750,-500.0,0.00016438,3]
[402349676,1768662641759,-500.0,0.00016438,3]
[402349678,1768662641769,-272.37095351,0.00016438,3]
[402349680,1768662641779,-658.11,0.00016438,3]
[402349682,1768662641788,-500.0,0.00016438,3]
[402349684,1768662641799,-500.0,0.00016438,3]
[402349686,1768662641808,-500.0,0.00016438,3]
[402349688,1768662641827,-500.0,0.00016438,3]
[402349690,1768662641836,-500.0,0.00016438,3]
[402349692,1768662641846,-500.0,0.00016438,3]
[402349694,1768662641855,-500.0,0.00016438,3]
[402349697,1768662641866,-500.0,0.00016438,3]
[402349698,1768662641876,-500.0,0.00016438,3]
[402349701,1768662641886,-500.0,0.00016438,3]
[402349703,1768662641896,-1398.34,0.00016438,3]
[402349704,1768662641905,-275.02958199,0.00016438,3]
[402349706,1768662641915,-500.0,0.00016438,3]
[402349708,1768662641924,-500.0,0.00016438,3]
[402349710,1768662641934,-500.0,0.00016438,3]
[402349713,1768662641943,-500.0,0.00016438,3]
[402349715,1768662641953,-500.0,0.00016438,3]
[402349717,1768662641962,-500.0,0.00016438,3]
[402349719,1768662641972,-500.0,0.00016438,3]
[402349721,1768662641982,-500.0,0.00016438,3]
[402349723,1768662641991,-500.0,0.00016438,3]
[402349725,1768662642000,-500.0,0.00016438,3]
[402349727,1768662642009,-721.9,0.00016438,3]
[402349729,1768662642019,-500.0,0.00016438,3]
[402349731,1768662642027,-500.0,0.00016438,3]
[402349733,1768662642036,-500.0,0.00016438,3]
[402349735,1768662642046,-1688.97,0.00016438,3]
[402349736,1768662642055,-500.0,0.00016438,3]
[402349738,1768662642064,-639.25,0.00016438,3]
[402349740,1768662642074,-605.39,0.00016438,3]
[402349741,1768662642083,-500.0,0.00016438,3]
[402349743,1768662642092,-784.74,0.00016438,3]
[402349745,1768662642102,-500.0,0.00016438,3]
[402349747,1768662642112,-500.0,0.00016438,3]
[402349749,1768662642121,-500.0,0.00016438,3]
[402349751,1768662642131,-1333.2,0.00016438,3]
[402349753,1768662642140,-805.67,0.00016438,3]
[402349755,1768662642149,-500.0,0.00016438,3]
[402349757,1768662642159,-616.4,0.00016438,3]
[402349759,1768662642168,-500.0,0.00016438,3]
[402349761,1768662642177,-500.0,0.00016438,3]
[402349763,1768662642187,-757.48,0.00016438,3]
[402349765,1768662642196,-500.0,0.00016438,3]
[402349767,1768662642205,-769.36,0.00016438,3]
[402349769,1768662642214,-500.0,0.00016438,3]
[402349771,1768662642224,-500.0,0.00016438,3]
[402349773,1768662642233,-500.0,0.00016438,3]
[402349775,1768662642242,-710.33,0.00016438,3]
[402349777,1768662642251,-500.0,0.00016438,3]
[402349778,1768662642260,-1000.0,0.00016438,2]
[402349782,1768662642271,-519.74,0.00016438,3]
[402349784,1768662642280,-500.0,0.00016438,3]
[402349785,1768662642290,-500.0,0.00016438,3]
[402349788,1768662642303,-500.0,0.00016438,3]
[402349792,1768662642313,-581.95,0.00016438,3]
[402349793,1768662642322,-500.0,0.00016438,3]
[402349795,1768662642332,-500.0,0.00016438,3]
[402349797,1768662642343,-500.0,0.00016438,3]
[402349799,1768662642352,-500.0,0.00016438,3]
[402349801,1768662642361,-500.0,0.00016438,3]
[402349804,1768662642372,-500.0,0.00016438,3]
[402349805,1768662642382,-500.0,0.00016438,3]
[402349808,1768662642391,-1144.02,0.00016438,3]
[402349810,1768662642401,-500.0,0.00016438,3]
[402349813,1768662642410,-500.0,0.00016438,3]
[402349815,1768662642420,-554.51009114,0.00016438,3]
[402349817,1768662642429,-500.0,0.00016438,3]
[402349820,1768662642439,-500.0,0.00016438,3]
[402349821,1768662642448,-1210.08,0.00016438,3]
[402349823,1768662642458,-500.0,0.00016438,3]
[402349825,1768662642468,-767.93,0.00016438,3]
[402349828,1768662642478,-500.0,0.00016438,3]
[402349831,1768662642487,-500.0,0.00016438,3]
[402349833,1768662642496,-1252.08,0.00016438,3]
[402349835,1768662642505,-500.0,0.00016438,3]
[402349837,1768662642515,-500.0,0.00016438,3]
[402349839,1768662642524,-500.0,0.00016438,3]
[402349841,1768662642534,-539.72,0.00016438,3]
[402349843,1768662642543,-500.0,0.00016438,3]
[402349845,1768662642552,-500.0,0.00016438,3]
[402349847,1768662642561,-500.0,0.00016438,3]
[402349849,1768662642570,-500.0,0.00016438,3]
[402349851,1768662642579,-500.0,0.00016438,3]
[402349853,1768662642588,-500.0,0.00016438,3]
[402349855,1768662642598,-635.41,0.00016438,3]
[402349857,1768662642607,-500.0,0.00016438,3]
[402349859,1768662642617,-500.0,0.00016438,3]
[402349861,1768662642627,-500.0,0.00016438,3]
[402349862,1768662642636,-500.0,0.00016438,3]
[402349865,1768662642646,-215.10452107,0.00016438,3]
[402349867,1768662642657,-500.0,0.00016438,3]
[402349868,1768662642666,-656.3,0.00016438,3]
[402349870,1768662642676,-684.28,0.00016438,3]
[402349872,1768662642686,-500.0,0.00016438,3]
[402349874,1768662642695,-500.0,0.00016438,3]
[402349876,1768662642704,-1037.47,0.00016438,3]
[402349878,1768662642714,-819.66,0.00016438,3]
[402349880,1768662642723,-934.4,0.00016438,3]
[402349882,1768662642732,-523.18,0.00016438,3]
[402349884,1768662642742,-1011.5,0.00016438,3]
[402349886,1768662642751,-500.0,0.00016438,3]
[402349888,1768662642760,-804.95,0.00016438,3]
[402349890,1768662642770,-1082.98,0.00016438,3]
[402349892,1768662642780,-500.0,0.00016438,3]
[402349894,1768662642790,-500.0,0.00016438,3]
[402349896,1768662642799,-500.0,0.00016438,3]
[402349898,1768662642808,-500.0,0.00016438,3]
[402349900,1768662642818,-500.0,0.00016438,3]
[402349902,1768662642827,-500.0,0.00016438,3]
[402349904,1768662642836,-500.0,0.00016438,3]
[402349906,1768662642845,-896.32,0.00016438,3]
[402349908,1768662642854,-536.25086162,0.00016438,3]
[402349910,1768662642863,-968.07,0.00016438,3]
[402349912,1768662642872,-500.0,0.00016438,3]
[402349913,1768662642882,-500.0,0.00016438,3]
[402349915,1768662642891,-682.17,0.00016438,3]
[402349917,1768662642901,-947.44,0.00016438,3]
[402349919,1768662642910,-500.0,0.00016438,3]
[402349921,1768662642920,-500.0,0.00016438,3]
[402349924,1768662642930,-478.36647413,0.00016438,3]
[402349925,1768662642940,-951.54,0.00016438,3]
[402349928,1768662642950,-500.0,0.00016438,3]
[402349930,1768662642960,-500.0,0.00016438,3]
[402349932,1768662642969,-500.0,0.00016438,3]
[402349935,1768662642979,-500.0,0.00016438,3]
[402349937,1768662642988,-309.63209923,0.00016438,3]
[402349938,1768662642998,-500.0,0.00016438,3]
[402349940,1768662643008,-500.0,0.00016438,3]
[402349942,1768662643017,-500.0,0.00016438,3]
[402349944,1768662643027,-500.0,0.00016438,3]
[402349946,1768662643036,-500.0,0.00016438,3]
[402349948,1768662643047,-562.49,0.00016438,3]
[402349950,1768662643057,-1404.85,0.00016438,3]
[402349953,1768662643066,-817.58,0.00016438,3]
[402349955,1768662643075,-1645.85,0.00016438,3]
[402349957,1768662643085,-500.0,0.00016438,3]
[402349959,1768662643095,-549.4,0.00016438,3]
[402349961,1768662643105,-500.0,0.00016438,3]
[402349963,1768662643115,-533.54,0.00016438,3]
[402349965,1768662643124,-500.0,0.00016438,3]
[402349967,1768662643134,-500.0,0.00016438,3]
[402349969,1768662643143,-500.0,0.00016438,3]
[402349971,1768662643154,-500.0,0.00016438,3]
[402349973,1768662643163,-500.0,0.00016438,3]
[402349975,1768662643173,-722.31,0.00016438,3]
[402349977,1768662643182,-500.0,0.00016438,3]
[402349979,1768662643192,-592.18,0.00016438,3]
[402349981,1768662643202,-500.0,0.00016438,3]
[402349983,1768662643212,-500.0,0.00016438,3]
[402349985,1768662643221,-617.55085621,0.00016438,3]
[402349987,1768662643230,-1425.78,0.00016438,3]
[402349989,1768662643240,-591.98,0.00016438,3]
[402349991,1768662643249,-500.0,0.00016438,3]
[402349993,1768662643259,-500.0,0.00016438,3]
[402349995,1768662643268,-500.0,0.00016438,3]
[402349997,1768662643277,-500.0,0.00016438,3]
[402349999,1768662643288,-1160.19,0.00016438,3]
[402350001,1768662643301,-500.0,0.00016438,3]
[402350003,1768662643311,-500.0,0.00016438,3]
[402350005,1768662643321,-500.0,0.00016438,3]
[402350006,1768662643330,-535.55,0.00016438,3]
[402350009,1768662643342,-500.0,0.00016438,3]
[402350010,1768662643351,-1001.78,0.00016438,3]
[402350012,1768662643362,-1529.77,0.00016438,3]
[402350014,1768662643375,-500.0,0.00016438,3]
[402350017,1768662643384,-500.0,0.00016438,3]
[402350019,1768662643394,-740.59,0.00016438,3]
[402350021,1768662643403,-1142.36,0.00016438,3]
[402350022,1768662643413,-1352.19,0.00016438,3]
[402350025,1768662643422,-635.21,0.00016438,3]
[402350027,1768662643432,-500.0,0.00016438,3]
[402350028,1768662643442,-622.56,0.00016438,3]
[402350030,1768662643452,-500.0,0.00016438,3]
[402350032,1768662643462,-500.0,0.00016438,3]
[402350034,1768662643471,-500.0,0.00016438,3]
[402350036,1768662643480,-500.0,0.00016438,3]
[402350038,1768662643491,-500.0,0.00016438,3]
[402350041,1768662643500,-500.0,0.00016438,3]
[402350043,1768662643510,-500.0,0.00016438,3]
[402350045,1768662643520,-510.46768292,0.00016438,3]
[402350047,1768662643530,-500.0,0.00016438,3]
[402350049,1768662643539,-500.0,0.00016438,3]
[402350051,1768662643549,-500.0,0.00016438,3]
[402350059,1768662643621,-715.3,0.00016438,3]
[402350061,1768662643630,-788.35,0.00016438,3]
[402350063,1768662643640,-596.43,0.00016438,3]
[402350065,1768662643649,-500.0,0.00016438,3]
[402350067,1768662643659,-500.0,0.00016438,3]
[402350069,1768662643668,-241.63455625,0.00016438,3]
[402350071,1768662643677,-500.0,0.00016438,3]
[402350073,1768662643686,-500.0,0.00016438,3]
[402350075,1768662643696,-500.0,0.00016438,3]
[402350077,1768662643705,-619.62,0.00016438,3]
[402350079,1768662643715,-1050.88,0.00016438,3]
[402350081,1768662643725,-736.98,0.00016438,3]
[402350083,1768662643734,-1158.67,0.00016438,3]
[402350085,1768662643743,-500.0,0.00016438,3]
[402350087,1768662643753,-500.0,0.00016438,3]
[402350089,1768662643762,-500.0,0.00016438,3]
[402350091,1768662643772,-817.41,0.00016438,3]
[402350093,1768662643783,-500.0,0.00016438,3]
[402350095,1768662643792,-500.0,0.00016438,3]
[402350097,1768662643801,-500.0,0.00016438,3]
[402350099,1768662643811,-750.38,0.00016438,3]
[402350101,1768662643819,-500.0,0.00016438,2]
[402350103,1768662643828,-500.0,0.00016438,3]
[402350105,1768662643837,-1156.52,0.00016438,3]
[402350107,1768662643847,-500.0,0.00016438,3]
[402350109,1768662643856,-500.0,0.00016438,3]
[402350111,1768662643866,-500.0,0.00016438,3]
[402350112,1768662643875,-500.0,0.00016438,3]
[402350114,1768662643884,-659.54,0.00016438,3]
[402350116,1768662643894,-544.04779014,0.00016438,3]
[402350118,1768662643903,-500.0,0.00016438,3]
[402350120,1768662643912,-500.0,0.00016438,3]
[402350122,1768662643922,-241.75904852,0.00016438,3]
[402350124,1768662643931,-500.0,0.00016438,3]
[402350126,1768662643940,-500.0,0.00016438,3]
[402350128,1768662643950,-500.0,0.00016438,3]
[402350130,1768662643959,-500.0,0.00016438,3]
[402350131,1768662643969,-684.72,0.00016438,3]
[402350132,1768662643978,-500.0,0.00016438,3]
[402350133,1768662643987,-533.41,0.00016438,3]
[402350134,1768662643996,-1901.49,0.00016438,3]
[402350135,1768662644006,-500.0,0.00016438,3]
[402350136,1768662644016,-870.38,0.00016438,3]
[402350137,1768662644025,-392.31626832,0.00016438,3]
[402350138,1768662644034,-500.0,0.00016438,3]
[402350139,1768662644044,-500.0,0.00016438,3]
[402350140,1768662644053,-500.0,0.00016438,3]
[402350141,1768662644063,-663.84,0.00016438,3]
[402350142,1768662644073,-500.0,0.00016438,3]
[402350143,1768662644082,-500.0,0.00016438,3]
[402350144,1768662644092,-543.64406781,0.00016438,3]
[402350145,1768662644102,-500.0,0.00016438,3]
[402350146,1768662644112,-297.49810477,0.00016438,3]
[402350147,1768662644122,-500.0,0.00016438,3]
[402350148,1768662644131,-500.0,0.00016438,3]
[402350149,1768662644140,-500.0,0.00016438,3]
[402350150,1768662644150,-500.0,0.00016438,3]
[402350151,1768662644159,-500.0,0.00016438,3]
[402350152,1768662644168,-500.0,0.00016438,3]
[402350153,1768662644178,-897.0,0.00016438,3]
[402350154,1768662644187,-500.0,0.00016438,3]
[402350155,1768662644197,-500.0,0.00016438,3]
[402350156,1768662644207,-500.0,0.00016438,3]
[402350157,1768662644216,-500.0,0.00016438,3]
[402350158,1768662644226,-500.0,0.00016438,3]
[402350159,1768662644234,-1113.89,0.00016438,3]
[402350161,1768662644244,-1200.48,0.00016438,3]
[402350163,1768662644252,-685.11,0.00016438,3]
[402350165,1768662644262,-500.0,0.00016438,3]
[402350167,1768662644271,-793.38,0.00016438,3]
[402350169,1768662644280,-500.0,0.00016438,3]
[402350171,1768662644289,-500.0,0.00016438,3]
[402350173,1768662644303,-500.0,0.00016438,3]
[402350175,1768662644312,-500.0,0.00016438,3]
[402350177,1768662644321,-857.35,0.00016438,3]